bitfinex-derivatives/quotes_ETHF0:USTF0_20240905
["timestamp","ask_amount","ask_price","bid_price","bid_amount"]
[1725562827455,0.41861,2389.2,2389.1,0.41861]
[1725562827650,0.42486946,2389.3,2389.2,0.41861]
[1725562828058,0.00626946,2389.3,2389.2,0.41861]
[1725562828455,0.42485946,2389.3,2389.2,0.41861]
[1725562828955,0.00626946,2389.3,2389.2,4.72514]
[1725562829147,0.00626946,2389.3,2389.2,3.67861]
[1725562829349,0.00626946,2389.3,2389.2,4.72514]
[1725562829549,0.4556,2389.7,2389.6,0.41854]
[1725562829765,0.3586,2389.7,2389.6,0.41854]
[1725562830558,0.77712,2389.7,2389.6,0.41854]
[1725562833259,0.41851,2389.8,2389.5,3.26]
[1725562833467,0.41851,2389.8,2389.6,0.41852]
[1725562833959,0.41851,2389.8,2389.7,0.3923]
[1725562834258,1.05250946,2389.9,2389.4,0.41856]
[1725562834558,1.05250946,2389.9,2389.3,0.7734]
[1725562834559,0.41855,2389.6,2389.5,0.80565]
[1725562834951,0.41853,2389.7,2389.5,0.80565]
[1725562835153,0.41854,2389.6,2389.5,0.80565]
[1725562835551,0.41851,2389.8,2389.6,0.41854]
[1725562835749,0.00626946,2389.9,2389.7,0.80292]
[1725562835750,0.42475946,2389.9,2389.7,0.80292]
[1725562835956,0.42475946,2389.9,2389.7,2.16292]
[1725562836160,0.4185,2389.8,2389.7,2.16292]
[1725562836563,0.4185,2389.8,2389.7,1.7444]
[1725562837165,0.41852,2389.7,2389.6,0.41853]
[1725562837362,0.00626946,2389.9,2389.5,1.7471]
[1725562837665,0.41852,2389.8,2389.6,0.41853]
[1725562838556,0.41851,2389.8,2389.6,0.41852]
[1725562839061,0.41852,2389.7,2389.6,0.41852]
[1725562839258,0.41852,2389.7,2389.5,1.7471]
[1725562839463,0.7303,2389.6,2389.5,2.16566]
[1725562839666,1.14884,2389.6,2389.2,4.5678]
[1725562839852,0.41856,2389.5,2389.4,0.41857]
[1725562840057,1.53445,2389.6,2389.3,0.3698]
[1725562840473,1.53445,2389.6,2389.4,0.41856]
[1725562840663,0.41863,2389.1,2388.9,3.2078]
[1725562840970,1.36,2389.3,2389.0,0.00626946]
[1725562841157,0.4186,2389.3,2389.0,1.78489946]
[1725562841462,0.21416427,2389.4,2389.0,1.78489946]
[1725562841463,0.63274427,2389.4,2389.2,0.41861]
[1725562841664,0.41858,2389.4,2389.2,0.41861]
[1725562841867,0.41858,2389.4,2389.2,0.79511]
[1725562842667,0.41858,2389.4,2389.2,0.3765]
[1725562842857,0.41858,2389.4,2389.2,0.79511]
[1725562843459,0.41859,2389.3,2389.2,0.3765]
[1725562843662,0.41858,2389.4,2389.2,0.3765]
[1725562843861,0.41858,2389.4,2389.2,0.7951]
[1725562844065,1.1159,2389.6,2389.3,3.26]
[1725562844260,1.1159,2389.6,2389.3,0.41858]
[1725562844769,0.41859,2389.3,2389.2,0.3765]
[1725562845268,0.41863,2389.1,2389.0,0.00626946]
[1725562845863,4.98673,2389.1,2389.0,0.00626946]
[1725562846467,4.98673,2389.1,2388.5,0.097]
[1725562846468,6.0333,2389.1,2388.5,0.097]
[1725562846674,6.0333,2389.1,2388.3,1.21070074]
[1725562846675,0.41874,2388.5,2388.3,0.097]
[1725562846968,3.2078,2388.7,2388.2,0.80508]
[1725562847165,3.6222,2388.6,2387.9,0.097]
[1725562847368,3.2078,2388.3,2387.9,0.097]
[1725562847567,3.2078,2388.3,2387.9,0.00626946]
[1725562847772,3.21406946,2388.3,2387.9,0.00626946]
[1725562848069,0.41878,2388.2,2387.9,0.00626946]
[1725562848370,3.21406946,2388.3,2387.9,0.00626946]
[1725562848671,0.3622,2388.1,2387.9,0.00626946]
[1725562849072,0.78101,2388.1,2387.9,0.00626946]
[1725562849571,0.3622,2388.1,2387.9,0.00626946]
[1725562849768,0.3556,2388.2,2387.9,3.26626946]
[1725562849957,0.3556,2388.2,2388.0,0.3721]
[1725562850477,0.00626946,2388.3,2388.1,3.67879]
[1725562850768,0.00626946,2388.3,2388.1,3.6788]
[1725562850967,0.00626946,2388.3,2388.2,0.41878]
[1725562851168,0.00626946,2388.3,2388.1,3.6473]
[1725562851478,0.00626946,2388.3,2388.1,3.67879]
[1725562851866,0.00626946,2388.3,2388.0,4.82911]
[1725562852060,0.00626946,2388.3,2388.0,4.4103]
[1725562852270,0.42504946,2388.3,2388.0,3.6321]
[1725562852467,0.00626946,2388.3,2388.0,4.05092]
[1725562852766,0.00626946,2388.3,2388.2,3.26]
[1725562852966,0.00626946,2388.3,2388.2,3.67878]
[1725562853778,0.00626946,2388.3,2388.2,7.86598]
[1725562853975,0.00626946,2388.3,2388.2,3.67878]
[1725562854173,0.00626946,2388.3,2388.2,7.86598]
[1725562854872,0.00626946,2388.3,2388.2,8.23888]
[1725562856875,0.00626946,2388.3,2388.2,7.86598]
[1725562857181,0.4758,2388.8,2388.2,13.4472]
[1725562857384,0.3788,2388.8,2388.7,3.6787]
[1725562857683,0.41862,2389.2,2388.9,0.41865]
[1725562857886,0.78752,2389.2,2389.0,3.26]
[1725562858076,0.93453,2389.7,2389.1,3.26]
[1725562858279,0.00626946,2389.6,2389.4,3.26]
[1725562858581,0.41859,2389.3,2389.2,0.00626946]
[1725562858786,1.67104909,2389.3,2389.2,0.00626946]
[1725562858981,9.78084909,2389.3,2389.2,0.00626946]
[1725562859578,15.78084909,2389.3,2389.2,0.00626946]
[1725562859783,14.73436909,2389.3,2389.2,0.00626946]
[1725562860184,15.78084909,2389.3,2389.2,0.00626946]
[1725562860782,0.41868,2388.8,2388.7,0.097]
[1725562860982,0.4187,2388.7,2388.3,6.88656]
[1725562861184,0.3568,2388.7,2388.4,0.41874]
[1725562861583,0.3568,2388.7,2388.5,0.3643]
[1725562862183,0.3568,2388.7,2388.5,0.78302]
[1725562862379,0.3568,2388.7,2388.5,4.04302]
[1725562862580,0.3568,2388.7,2388.6,0.41871]
[1725562862791,1.18884,2389.1,2388.7,0.41869]
[1725562863090,0.7702,2389.1,2388.7,0.41869]
[1725562863280,1.18884,2389.1,2388.7,0.41869]
[1725562863682,0.41865,2389.0,2388.6,3.9842]
[1725562864086,0.41865,2389.0,2388.7,0.41869]
[1725562864286,0.41865,2389.0,2388.6,0.7764]
[1725562864678,1.18884,2389.1,2388.7,0.41869]
[1725562864887,0.7702,2389.1,2388.8,0.41867]
[1725562865290,0.7702,2389.1,2388.9,0.3925]
[1725562865683,0.3868,2389.1,2388.9,0.81115]
[1725562865988,0.3868,2389.1,2389.0,0.41864]
[1725562866282,0.3612,2389.4,2388.9,6.8603]
[1725562866283,0.77979,2389.4,2388.9,6.8603]
[1725562866485,0.41859,2389.3,2389.1,0.41862]
[1725562866887,0.41861,2389.2,2389.0,0.41864]
[1725562867087,0.4186,2389.3,2389.0,0.41864]
[1725562867291,1.16358,2389.4,2388.9,6.8603]
[1725562867483,1.16358,2389.4,2389.2,0.4186]
[1725562867686,1.16358,2389.4,2389.3,0.3925]
[1725562868788,1.37045286,2389.4,2389.3,0.3925]
[1725562869216,0.95187286,2389.4,2389.3,0.3925]
[1725562869401,1.37044286,2389.4,2389.3,0.3925]
[1725562870092,0.4186,2389.3,2389.1,0.41862]
[1725562870295,0.41862,2389.2,2389.0,0.80233]
[1725562870495,0.41861,2389.2,2389.0,0.80233]
[1725562871195,0.4186,2389.3,2389.1,0.41862]
[1725562871386,1.16359,2389.4,2389.1,0.41862]
[1725562871591,0.41859,2389.3,2389.1,0.41862]
[1725562872396,0.41859,2389.3,2389.0,0.7538]
[1725562872397,0.94931836,2389.4,2389.0,1.17244]
[1725562872589,0.94931836,2389.4,2388.9,3.62646]
[1725562872590,0.41863,2389.1,2388.9,3.62646]
[1725562872795,0.41863,2389.1,2389.0,0.3703]
[1725562873392,0.41862,2389.2,2389.0,0.78894]
[1725562874800,0.41863,2389.1,2389.0,0.3703]
[1725562875305,0.41864,2389.0,2388.8,0.41867]
[1725562875604,0.41866,2388.9,2388.8,0.41867]
[1725562875796,0.78895,2389.0,2388.8,0.78157]
[1725562875992,0.78895,2389.0,2388.9,0.41866]
[1725562876499,0.41866,2388.9,2388.8,0.78157]
[1725562878713,1.16715,2389.0,2388.9,0.41866]
[1725562878909,0.41866,2388.9,2388.8,0.3629]
[1725562879115,1.46532,2388.9,2388.8,0.3629]
[1725562879414,0.41866,2388.9,2388.8,0.78158]
[1725562879908,0.7485,2389.0,2388.9,0.41866]
[1725562879909,1.16715,2389.0,2388.9,0.41866]
[1725562880915,1.16715,2389.0,2388.8,0.78157]
[1725562880916,0.41866,2388.9,2388.8,0.78157]
[1725562881915,1.16716,2389.0,2388.9,0.41866]
[1725562882110,1.16714,2389.0,2388.9,0.41866]
[1725562882508,1.04651,2389.3,2388.8,4.6696]
[1725562882817,0.41864,2389.0,2388.9,0.78055]
[1725562883118,0.41864,2389.0,2388.8,3.6229]
[1725562883119,0.41866,2388.9,2388.8,0.78157]
[1725562883315,0.7548,2388.9,2388.8,0.78157]
[1725562883509,0.3939,2388.9,2388.8,0.78157]
[1725562884012,0.41863,2389.1,2389.0,0.41864]
[1725562884615,0.41864,2389.0,2388.9,0.78455]
[1725562884813,0.41864,2389.0,2388.9,0.41865]
[1725562885216,0.41866,2388.9,2388.8,0.78157]
[1725562885812,0.41866,2389.0,2388.9,0.41866]
[1725562886323,0.41866,2388.9,2388.8,0.78157]
[1725562886517,0.41863,2389.1,2389.0,0.41863]
[1725562886716,0.3939,2389.2,2389.0,0.41863]
[1725562886911,0.41865,2389.0,2388.9,0.41865]
[1725562887815,0.41864,2389.1,2388.9,0.41865]
[1725562888117,0.41864,2389.0,2388.9,0.41865]
[1725562889622,4.64824,2389.2,2388.8,0.78157]
[1725562889623,0.41866,2388.9,2388.8,0.78157]
[1725562889926,0.41866,2388.9,2388.8,0.3629]
[1725562890121,1.46532,2388.9,2388.8,0.3629]
[1725562890318,0.4187,2388.7,2388.6,0.7846]
[1725562891725,0.4187,2388.7,2388.6,1.142]
[1725562892317,0.4187,2388.7,2388.6,0.7233]
[1725562892513,5.23315,2388.7,2388.4,4.56474]
[1725562892717,0.41871,2388.6,2388.3,0.00626946]
[1725562892913,0.41871,2388.7,2388.3,3.26626946]
[1725562893219,0.3876,2388.8,2388.7,0.4187]
[1725562893625,3.2078,2388.9,2388.8,0.41868]
[1725562893924,0.80592,2389.2,2388.8,3.26]
[1725562894120,0.41863,2389.1,2389.0,0.41863]
[1725562894314,0.41864,2389.0,2388.9,0.3802]
[1725562894517,0.41864,2389.1,2389.0,0.41864]
[1725562895329,0.3873,2389.2,2389.0,0.41864]
[1725562895513,0.41863,2389.1,2389.0,0.41864]
[1725562896422,0.3873,2389.2,2389.0,0.41863]
[1725562896625,0.41863,2389.1,2389.0,0.41863]
[1725562897320,0.3873,2389.2,2388.8,3.2078]
[1725562897529,0.41866,2388.9,2388.8,3.2078]
[1725562897720,0.41866,2388.9,2388.8,3.62648]
[1725562897917,0.41865,2389.0,2388.8,3.62648]
[1725562898625,0.41865,2389.0,2388.8,3.62646]
[1725562899022,0.41865,2389.0,2388.9,0.41866]
[1725562899529,0.41863,2389.1,2389.0,0.41864]
[1725562900731,0.41863,2389.1,2388.8,3.2078]
[1725562900732,0.3869,2389.3,2388.8,3.2078]
[1725562900927,0.8055,2389.3,2388.9,3.6529]
[1725562901130,0.3869,2389.3,2389.1,0.41861]
[1725562901320,0.3869,2389.3,2389.2,0.41861]
[1725562903128,0.80549,2389.3,2389.2,0.41861]
[1725562903634,0.41861,2389.2,2389.1,0.41861]
[1725562905225,0.3869,2389.3,2389.1,0.41861]
[1725562905432,0.8055,2389.3,2389.2,0.41861]
[1725562908235,0.3869,2389.3,2389.2,0.41861]
[1725562908436,0.80549,2389.3,2389.2,0.41861]
[1725562910638,0.41862,2389.2,2389.1,0.41861]
[1725562911441,0.8055,2389.3,2389.2,0.41861]
[1725562911636,0.3869,2389.3,2389.0,0.3898]
[1725562911943,0.41862,2389.2,2389.1,0.41862]
[1725562914641,0.8055,2389.3,2389.2,0.41861]
[1725562918644,0.3869,2389.3,2389.2,0.41861]
[1725562918837,0.80549,2389.3,2389.2,0.41861]
[1725562920353,0.00626946,2389.6,2389.5,0.41856]
[1725562920551,0.00626946,2389.6,2389.5,1.77856]
[1725562921350,0.00626946,2389.6,2389.3,3.99468]
[1725562921544,0.41857,2389.4,2389.3,3.2078]
[1725562921851,0.62911857,2389.4,2389.3,3.2078]
[1725562922053,1.36031857,2389.4,2389.3,3.2078]
[1725562922649,1.14977,2389.4,2389.3,3.2078]
[1725562923643,1.36331511,2389.4,2389.3,3.2078]
[1725562923840,1.36332511,2389.4,2389.2,0.41861]
[1725562924047,1.14978,2389.4,2389.2,0.41861]
[1725562926157,1.14978,2389.4,2389.3,0.41859]
[1725562926158,0.3621,2389.4,2389.3,0.41859]
[1725562927053,0.78067,2389.4,2389.3,0.41859]
[1725562927441,0.3621,2389.4,2389.3,0.41859]
[1725562927744,0.36946946,2389.6,2389.3,0.41859]
[1725562927745,0.41856,2389.5,2389.3,3.26]
[1725562927938,0.41856,2389.5,2389.4,0.41856]
[1725562929446,1.18051946,2389.6,2389.5,0.41856]
[1725562929947,0.00626946,2389.6,2389.5,0.41856]
[1725562930451,0.00626946,2389.6,2389.5,0.78886]
[1725562930958,0.00626946,2389.6,2389.5,4.04886]
[1725562931647,0.00626946,2389.6,2389.5,8.23366]
[1725562933053,0.00626946,2389.6,2389.5,0.78886]
[1725562934647,0.00626946,2389.6,2389.5,4.97366]
[1725562935249,0.00626946,2389.6,2389.5,8.23366]
[1725562935450,0.00626946,2389.6,2389.5,14.23366]
[1725562935647,3.62626,2390.1,2389.9,0.41849]
[1725562935851,3.62626,2390.1,2390.0,0.3758]
[1725562936554,3.62626,2390.1,2389.8,0.41849]
[1725562936555,0.4185,2389.9,2389.8,0.00626946]
[1725562937854,1.46472,2389.9,2389.8,0.00626946]
[1725562938064,5.64872,2389.9,2389.8,0.00626946]
[1725562938256,6.36372,2389.9,2389.8,0.00626946]
[1725562938452,1.1335,2389.9,2389.8,0.00626946]
[1725562939455,2.17972,2389.9,2389.8,0.00626946]
[1725562939955,6.36372,2389.9,2389.8,0.00626946]
[1725562940860,5.3175,2389.9,2389.8,0.00626946]
[1725562941048,0.7745,2389.9,2389.8,0.00626946]
[1725562941766,0.41848,2390.0,2389.8,0.42476946]
[1725562942055,0.41848,2390.0,2389.9,0.3784]
[1725562943651,3.9435,2390.1,2389.9,0.3784]
[1725562943859,0.41847,2390.0,2389.9,0.3784]
[1725562948052,3.2078,2390.1,2389.9,4.5624]
[1725562948257,0.3892,2390.2,2390.1,0.41845]
[1725562949262,0.3892,2390.2,2390.0,6.4678]
[1725562949263,1.46458,2390.1,2390.0,3.2078]
[1725562949466,0.41849,2389.9,2389.8,0.42476946]
[1725562949667,0.41849,2389.9,2389.8,0.00626946]
[1725562953262,1.46471,2389.9,2389.8,0.00626946]
[1725562954666,4.67251,2389.9,2389.8,0.00626946]
[1725562955372,1.46471,2389.9,2389.8,0.00626946]
[1725562959472,0.41849,2389.9,2389.8,0.36236946]
[1725562959873,1.46471,2389.9,2389.8,0.00626946]
[1725562961170,1.43532,2390.2,2389.9,0.41849]
[1725562961471,0.41846,2390.1,2390.0,0.77457]
[1725562962669,0.41846,2390.1,2390.0,0.3561]
[1725562964977,0.41849,2389.9,2389.8,0.00626946]
[1725562965876,0.41849,2389.9,2389.8,0.42476946]
[1725562966081,0.41849,2389.9,2389.8,0.37926946]
[1725562966581,0.41849,2389.9,2389.8,0.79776946]
[1725562966780,0.41849,2389.9,2389.8,0.37926946]
[1725562967084,1.05232946,2390.3,2389.8,7.82326946]
[1725562967085,0.00626946,2390.3,2389.8,7.82326946]
[1725562967282,0.41846,2390.1,2389.9,0.77957]
[1725562967483,0.41847,2390.0,2389.9,0.3611]
[1725562968177,0.41847,2390.0,2389.9,4.5451]
[1725562968682,0.41847,2390.0,2389.9,0.3611]
[1725562968981,0.41849,2389.9,2389.8,0.00626946]
[1725562969178,1.17829,2389.9,2389.8,0.00626946]
[1725562969679,0.79569,2389.9,2389.8,1.36626946]
[1725562973490,0.79569,2389.9,2389.8,1.78476946]
[1725562973491,0.41849,2389.9,2389.8,1.78476946]
[1725562973677,0.41849,2389.9,2389.8,2.14686946]
[1725562973879,1.04615,2390.1,2389.8,2.14686946]
[1725562974986,0.41849,2389.9,2389.8,2.14686946]
[1725562975486,0.41849,2389.9,2389.8,1.72836946]
[1725562977786,0.41849,2389.9,2389.8,1.36626946]
[1725562977989,1.46471,2389.9,2389.8,0.00626946]
[1725562978288,2.21141,2389.9,2389.8,0.00626946]
[1725562980090,6.46543,2389.9,2389.8,0.00626946]
[1725562981287,3.25763,2389.9,2389.8,0.00626946]
[1725562986093,2.21141,2389.9,2389.8,0.00626946]
[1725562986300,1.84191,2389.9,2389.8,0.00626946]
[1725562987402,0.79569,2389.9,2389.8,0.42476946]
[1725562987588,0.78945,2390.2,2390.1,0.41845]
[1725562987791,0.371,2390.2,2390.1,0.41845]
[1725562987992,0.41843,2390.2,2390.1,0.41845]
[1725562988293,0.41843,2390.2,2390.1,0.7683]
[1725562988797,1.46452,2390.2,2390.1,0.3782]
[1725562988993,0.41847,2390.0,2389.9,1.36]
[1725562989796,0.78167,2390.0,2389.9,1.36]
[1725562990592,0.3632,2390.0,2389.9,1.77849]
[1725562993595,0.78167,2390.0,2389.9,1.77849]
[1725562995688,2.51093,2389.9,2389.8,0.00626946]
[1725562995896,2.89673,2389.9,2389.8,0.00626946]
[1725562998298,1.85051,2389.9,2389.8,0.00626946]
[1725562999395,0.41849,2389.9,2389.8,1.36626946]
[1725563000199,0.41849,2389.9,2389.8,1.74186946]
[1725563002103,0.41847,2390.0,2389.8,1.74186946]
[1725563002298,0.41847,2390.0,2389.9,1.7505]
[1725563002498,0.41847,2390.0,2389.9,2.1432]
[1725563002703,0.41847,2390.0,2389.9,2.56169]
[1725563003698,3.21406946,2390.3,2389.9,2.1432]
[1725563003907,3.63249946,2390.3,2390.2,0.41843]
[1725563004305,3.63249946,2390.3,2390.2,0.80683]
[1725563004701,0.00626946,2390.3,2390.2,0.80683]
[1725563004898,0.42468946,2390.3,2390.2,0.80683]
[1725563009115,0.42468946,2390.3,2390.2,0.3884]
[1725563010717,0.41847,2390.0,2389.9,0.7832]
[1725563011005,0.41849,2389.9,2389.8,1.36626946]
[1725563011402,0.41849,2389.9,2389.8,1.78476946]
[1725563012002,0.41849,2389.9,2389.8,2.17166946]
[1725563012403,0.41849,2389.9,2389.8,2.17165946]
[1725563015515,1.46471,2389.9,2389.8,0.00626946]
[1725563015716,1.46471,2389.9,2389.8,1.36626946]
[1725563016522,1.82681,2389.9,2389.8,1.36626946]
[1725563017532,1.04614,2390.1,2389.8,1.36626946]
[1725563017815,0.41848,2390.0,2389.9,1.77848]
[1725563020218,0.41848,2390.0,2389.9,1.36]
[1725563020409,0.41849,2389.9,2389.8,1.78475946]
[1725563020924,0.41849,2389.9,2389.8,1.36626946]
[1725563021220,0.41847,2390.0,2389.9,0.41849]
[1725563021518,0.41847,2390.0,2389.9,1.36]
[1725563021722,0.41849,2389.9,2389.8,1.78475946]
[1725563022223,1.46471,2389.9,2389.8,0.00626946]
[1725563023921,1.46471,2389.9,2389.8,1.36626946]
[1725563024321,0.41849,2389.9,2389.8,1.36626946]
[1725563028525,0.41849,2389.9,2389.8,1.78476946]
[1725563028719,0.41846,2390.1,2390.0,0.41846]
[1725563031727,0.41847,2390.0,2389.9,1.77847]
[1725563032730,0.41847,2390.0,2389.9,0.41847]
[1725563035429,0.41845,2390.2,2390.1,0.41844]
[1725563035730,0.41845,2390.1,2390.0,1.17055]
[1725563037127,0.41845,2390.1,2390.0,1.53935]
[1725563037563,3.21406946,2390.3,2390.1,0.41843]
[1725563037833,3.63249946,2390.3,2390.2,1.77843]
[1725563038027,3.21406946,2390.3,2390.2,1.77843]
[1725563038228,3.3048,2390.7,2390.2,6.59009]
[1725563038430,0.7185,2390.9,2390.6,1.36]
[1725563038633,0.41833,2390.8,2390.7,0.3914]
[1725563038823,1.46416,2390.8,2390.7,0.3914]
[1725563040033,0.41835,2390.7,2390.6,1.36]
[1725563040432,0.41835,2390.7,2390.5,0.3914]
[1725563040727,0.41835,2390.7,2390.2,0.097]
[1725563040728,1.046,2390.4,2390.2,0.097]
[1725563040930,1.046,2390.4,2390.1,1.7514]
[1725563040931,0.41843,2390.2,2390.1,1.7514]
[1725563041229,1.79925,2390.3,2389.9,0.41848]
[1725563041230,0.41846,2390.1,2389.9,0.41848]
[1725563041433,0.41846,2390.1,2390.0,0.3787]
[1725563041735,0.41844,2390.2,2390.0,0.79717]
[1725563043129,0.3925,2390.3,2390.2,0.41843]
[1725563043325,0.41837,2390.6,2390.2,4.184]
[1725563043526,4.3142,2390.9,2390.4,3.26]
[1725563043729,0.41834,2390.8,2390.4,3.26]
[1725563043931,0.41834,2390.8,2390.6,0.41835]
[1725563044335,0.41834,2390.8,2390.6,0.81115]
[1725563044539,4.3142,2390.9,2390.7,0.41834]
[1725563044744,6.32803137,2391.0,2390.7,0.3647]
[1725563044745,0.00626946,2391.0,2390.7,0.3647]
[1725563044927,0.42456946,2391.0,2390.7,0.3647]
[1725563045122,0.42456946,2391.0,2390.7,0.78304]
[1725563046630,0.41831,2390.9,2390.7,0.3647]
[1725563046835,0.42456946,2391.0,2390.7,0.78304]
[1725563047031,0.42456946,2391.0,2390.8,0.41833]
[1725563047233,0.42456946,2391.0,2390.7,0.78303]
[1725563048434,0.42456946,2391.0,2390.8,0.41832]
[1725563048852,0.42456946,2391.0,2390.9,0.3606]
[1725563050437,0.42456946,2391.0,2390.6,3.6528]
[1725563050438,0.41832,2390.9,2390.6,3.6528]
[1725563050739,0.3798,2390.8,2390.7,0.41834]
[1725563052443,0.3798,2390.8,2390.5,0.3812]
[1725563052444,0.41836,2390.6,2390.5,0.3812]
[1725563053044,0.41838,2390.5,2390.3,4.9488]
[1725563053243,0.3828,2390.4,2390.3,0.4184]
[1725563053939,0.41837,2390.6,2390.4,0.41839]
[1725563054137,0.41837,2390.6,2390.5,0.7418]
[1725563054363,0.7357,2390.9,2390.6,0.41836]
[1725563054549,1.15402,2390.9,2390.8,0.41833]
[1725563054743,0.7357,2390.9,2390.6,3.26]
[1725563055053,1.15402,2390.9,2390.8,0.41833]
[1725563061052,0.41833,2390.8,2390.7,3.62613]
[1725563061855,1.15402,2390.9,2390.8,0.41833]
[1725563062043,0.77852,2390.9,2390.8,0.41833]
[1725563062244,0.77852,2390.9,2390.8,0.78513]
[1725563062948,1.16072,2390.9,2390.8,0.78513]
[1725563067751,0.42456946,2391.0,2390.9,0.41831]
[1725563067954,0.42456946,2391.0,2390.9,0.80851]
[1725563070958,0.42456946,2391.0,2390.9,0.41831]
[1725563071750,0.41831,2390.9,2390.8,4.04512]
[1725563071946,0.78621,2390.9,2390.8,4.04512]
[1725563072152,0.78621,2390.9,2390.8,0.78512]
[1725563072458,0.78621,2390.9,2390.6,0.41836]
[1725563072459,0.41835,2390.7,2390.6,0.41836]
[1725563073250,1.13784,2390.8,2390.7,0.41835]
[1725563073462,0.41835,2390.7,2390.6,0.41835]
[1725563073646,1.13784,2390.8,2390.7,0.41835]
[1725563073848,0.41835,2390.7,2390.6,0.41835]
[1725563074452,1.13784,2390.8,2390.7,0.41835]
[1725563074849,14.1097,2390.8,2390.0,3.26]
[1725563075057,14.1097,2390.8,2389.9,0.74247]
[1725563075058,0.41843,2390.2,2389.9,0.74247]
[1725563075267,0.41847,2390.0,2389.8,3.63255946]
[1725563075458,1.04605,2390.3,2389.9,0.41849]
[1725563075459,0.77976,2390.1,2389.9,0.41849]
[1725563075794,0.3613,2390.1,2390.0,0.41847]
[1725563076345,0.77975,2390.1,2390.0,0.41847]
[1725563077251,0.77975,2390.1,2389.9,0.41848]
[1725563077453,0.3613,2390.1,2389.8,3.21406946]
[1725563077663,0.77975,2390.1,2390.0,0.41847]
[1725563077947,0.77975,2390.1,2389.9,0.41847]
[1725563078156,0.3613,2390.1,2390.0,0.41847]
[1725563078958,0.7379,2390.3,2390.1,0.41845]
[1725563079164,0.41844,2390.2,2390.0,0.41845]
[1725563079458,0.41844,2390.2,2390.0,0.739]
[1725563079661,0.41845,2390.1,2389.9,3.26]
[1725563079854,0.41845,2390.1,2390.0,0.41847]
[1725563082649,0.41845,2390.1,2389.9,3.26]
[1725563082853,0.41845,2390.1,2390.0,0.41847]
[1725563085763,2.16576,2390.3,2389.9,3.67847]
[1725563085967,0.41849,2389.9,2389.8,1.36626946]
[1725563086274,2.51093,2389.9,2389.8,0.00626946]
[1725563086562,2.89823,2389.9,2389.8,0.00626946]
[1725563086962,3.62563,2389.9,2389.8,0.00626946]
[1725563087160,2.57941,2389.9,2389.8,0.00626946]
[1725563099475,0.80579,2389.9,2389.8,0.42476946]
[1725563099678,0.80579,2389.9,2389.8,0.78696946]
[1725563100176,0.7745,2390.1,2390.0,0.41847]
[1725563100378,0.41846,2390.1,2390.0,0.41847]
[1725563100776,4.62359,2390.2,2389.9,0.41847]
[1725563100976,0.41847,2390.0,2389.9,0.41847]
[1725563102278,0.41848,2390.0,2389.9,0.41848]
[1725563102487,0.41849,2389.9,2389.8,0.78696946]
[1725563104084,3.5775,2390.2,2389.8,7.81246946]
[1725563104272,1.65203544,2390.4,2390.2,0.41842]
[1725563104273,0.63281544,2390.4,2390.2,0.41842]
[1725563104476,0.41838,2390.5,2390.3,0.41841]
[1725563104882,0.41836,2390.7,2390.3,3.26]
[1725563105080,0.41836,2390.7,2390.5,0.41837]
[1725563105283,0.41837,2390.6,2390.4,0.41839]
[1725563106688,4.61731,2390.9,2390.3,3.26]
[1725563106890,4.61731,2390.9,2390.1,3.6769]
[1725563106891,0.41841,2390.4,2390.1,7.35534]
[1725563107188,0.41842,2390.3,2390.1,7.25834]
[1725563107386,0.56542949,2390.5,2390.1,7.25834]
[1725563107387,0.41841,2390.4,2390.1,7.25834]
[1725563107587,0.41841,2390.4,2390.2,0.41843]
[1725563108380,0.56542949,2390.5,2389.8,6.47406946]
[1725563108689,1.046,2390.4,2389.9,0.41848]
[1725563109076,0.41845,2390.2,2389.9,0.41848]
[1725563109783,0.41845,2390.2,2390.0,0.41846]
[1725563110383,0.41845,2390.2,2390.0,3.67846]
[1725563110587,0.41842,2390.3,2390.1,0.41844]
[1725563112083,0.41843,2390.2,2390.1,0.41844]
[1725563112384,0.41843,2390.2,2390.0,3.67846]
[1725563112693,0.41847,2390.0,2389.9,0.41848]
[1725563113079,1.04606,2390.3,2389.9,0.41848]
[1725563113080,0.7449,2390.2,2389.9,0.41848]
[1725563113281,0.41845,2390.1,2389.9,0.41848]
[1725563113482,0.77375,2390.1,2389.9,0.41848]
[1725563113781,0.77375,2390.1,2390.0,0.41847]
[1725563114388,0.77375,2390.1,2389.9,0.41847]
[1725563115301,1.40145,2390.1,2389.8,3.62406946]
[1725563115597,1.40145,2390.1,2389.8,0.00626946]
[1725563115598,0.41849,2389.9,2389.8,0.00626946]
[1725563116981,1.46471,2389.9,2389.8,0.00626946]
[1725563120697,0.41849,2389.9,2389.8,0.00626946]
[1725563122987,1.46471,2389.9,2389.8,0.00626946]
[1725563126689,1.83311,2389.9,2389.8,0.00626946]
[1725563129497,13.06333,2389.9,2389.5,0.097]
[1725563129695,1.46501,2389.4,2389.3,4.146]
[1725563129891,0.41859,2389.4,2389.3,0.41859]
[1725563130898,0.79617,2389.5,2389.4,0.41857]
[1725563131104,0.41857,2389.5,2389.4,0.41857]
[1725563135809,0.00626946,2389.6,2389.5,0.41856]
[1725563136013,0.00626946,2389.6,2389.5,9.97006]
[1725563136313,0.00626946,2389.6,2389.5,15.97006]
[1725563136912,0.00626946,2389.6,2389.5,11.01646]
[1725563138103,0.00626946,2389.6,2389.5,9.97006]
[1725563138298,0.00626946,2389.6,2389.5,8.92366]
[1725563139406,0.00626946,2389.6,2389.5,9.97006]
[1725563140503,0.00626946,2389.6,2389.5,15.97006]
[1725563141210,0.00626946,2389.6,2389.5,8.92366]
[1725563141615,0.00626946,2389.6,2389.5,14.92366]
[1725563142606,0.00626946,2389.6,2389.5,8.92366]